[Event "Titled Tuesday Blitz July 25 Early 2023"]
[White "So, Wesley"]
[Black "Bluebaum, Matthias"]
[WhiteFideId "5202213"]
[BlackFideId "24651516"]
[WhiteElo "3102"]
[BlackElo "3064"]
[Result "1-0"]
[Round "8"]
[TimeControl "180+2"]
[Date "2023.07.25"]
[WhiteClock "0:00:02"]
[BlackClock "0:00:00"]
[Board "2"]

1. Nf3 {[%clk 0:03:00]}  d5 {[%clk 0:03:00]} 2. d4 {[%clk 0:03:00]}  e6 {[%clk 0:03:00]} 3. c4 {[%clk 0:03:01]}  Nf6 {[%clk 0:03:00]} 4. Nc3 {[%clk 0:02:56]}  Bb4 {[%clk 0:03:00]} 5. e3 {[%clk 0:02:54]}  O-O {[%clk 0:02:59]} 6. Bd2 {[%clk 0:02:52]}  Nbd7 {[%clk 0:02:57]} 7. a3 {[%clk 0:02:49]}  Be7 {[%clk 0:02:55]} 8. Rc1 {[%clk 0:02:45]}  dxc4 {[%clk 0:02:49]} 9. Bxc4 {[%clk 0:02:46]}  b6 {[%clk 0:02:42]} 10. O-O {[%clk 0:02:13]}  Bb7 {[%clk 0:02:42]} 11. Qb3 {[%clk 0:02:10]}  Bxf3 {[%clk 0:02:21]} 12. gxf3 {[%clk 0:02:11]}  c5 {[%clk 0:02:21]} 13. Ne2 {[%clk 0:01:54]}  cxd4 {[%clk 0:02:08]} 14. Nxd4 {[%clk 0:01:55]}  Ne5 {[%clk 0:02:09]} 15. Be2 {[%clk 0:01:54]}  Bc5 {[%clk 0:02:09]} 16. Bc3 {[%clk 0:01:54]}  Ng6 {[%clk 0:01:46]} 17. f4 {[%clk 0:01:38]}  Bxd4 {[%clk 0:00:57]} 18. Rfd1 {[%clk 0:01:25]}  Nd5 {[%clk 0:00:32]} 19. Rxd4 {[%clk 0:01:10]}  Qh4 {[%clk 0:00:32]} 20. Bd2 {[%clk 0:00:43]}  Qh3 {[%clk 0:00:26]} 21. Bf1 {[%clk 0:00:22]}  Qg4+ {[%clk 0:00:24]} 22. Kh1 {[%clk 0:00:22]}  Nh4 {[%clk 0:00:15]} 23. h3 {[%clk 0:00:22]}  Qf3+ {[%clk 0:00:12]} 24. Kg1 {[%clk 0:00:23]}  Qh5 {[%clk 0:00:12]} 25. Kh1 {[%clk 0:00:23]}  Qf3+ {[%clk 0:00:12]} 26. Kg1 {[%clk 0:00:23]}  Qh5 {[%clk 0:00:13]} 27. Rd3 {[%clk 0:00:18]}  Rad8 {[%clk 0:00:04]} 28. Qd1 {[%clk 0:00:16]}  Qg6+ {[%clk 0:00:03]} 29. Kh2 {[%clk 0:00:10]}  Qe4 {[%clk 0:00:04]} 30. Rd4 {[%clk 0:00:10]}  Qg6 {[%clk 0:00:04]} 31. Rd3 {[%clk 0:00:06]}  Qe4 {[%clk 0:00:04]} 32. Qg4 {[%clk 0:00:06]}  Nf3+ {[%clk 0:00:03]} 33. Kg3 {[%clk 0:00:06]}  Nxd2 {[%clk 0:00:03]} 34. Rxd2 {[%clk 0:00:07]}  Nf6 {[%clk 0:00:03]} 35. Qe2 {[%clk 0:00:08]}  Qg6+ {[%clk 0:00:03]} 36. Kh2 {[%clk 0:00:08]}  h6 {[%clk 0:00:03]} 37. Bg2 {[%clk 0:00:07]}  Qf5 {[%clk 0:00:03]} 38. Rc7 {[%clk 0:00:06]}  e5 {[%clk 0:00:03]} 39. Rxd8 {[%clk 0:00:04]}  Rxd8 {[%clk 0:00:03]} 40. Qc2 {[%clk 0:00:05]}  Qxc2 {[%clk 0:00:02]} 41. Rxc2 {[%clk 0:00:05]}  exf4 {[%clk 0:00:03]} 42. exf4 {[%clk 0:00:06]}  g6 {[%clk 0:00:04]} 43. Rc7 {[%clk 0:00:06]}  Rd7 {[%clk 0:00:04]} 44. Rc2 {[%clk 0:00:05]}  Kg7 {[%clk 0:00:04]} 45. Bf3 {[%clk 0:00:06]}  Rd4 {[%clk 0:00:04]} 46. Kg3 {[%clk 0:00:06]}  Rd7 {[%clk 0:00:04]} 47. Kg2 {[%clk 0:00:05]}  Ng8 {[%clk 0:00:02]} 48. b4 {[%clk 0:00:04]}  h5 {[%clk 0:00:03]} 49. f5 {[%clk 0:00:04]}  Nf6 {[%clk 0:00:02]} 50. fxg6 {[%clk 0:00:04]}  Kxg6 {[%clk 0:00:03]} 51. Rc6 {[%clk 0:00:03]}  Kf5 {[%clk 0:00:03]} 52. a4 {[%clk 0:00:04]}  Ke5 {[%clk 0:00:03]} 53. a5 {[%clk 0:00:04]}  bxa5 {[%clk 0:00:04]} 54. Rc5+ {[%clk 0:00:04]}  Kf4 {[%clk 0:00:03]} 55. Rxa5 {[%clk 0:00:05]}  h4 {[%clk 0:00:03]} 56. b5 {[%clk 0:00:04]}  Rc7 {[%clk 0:00:02]} 57. Ra4+ {[%clk 0:00:05]}  Kg5 {[%clk 0:00:02]} 58. Bc6 {[%clk 0:00:04]}  Kg6 {[%clk 0:00:01]} 59. Rxh4 {[%clk 0:00:04]}  a6 {[%clk 0:00:01]} 60. Ra4 {[%clk 0:00:03]}  axb5 {[%clk 0:00:02]} 61. Bxb5 {[%clk 0:00:04]}  Rc5 {[%clk 0:00:03]} 62. Bd3+ {[%clk 0:00:04]}  Kg7 {[%clk 0:00:02]} 63. h4 {[%clk 0:00:05]}  Rd5 {[%clk 0:00:03]} 64. Be2 {[%clk 0:00:05]}  Re5 {[%clk 0:00:04]} 65. Bf3 {[%clk 0:00:05]}  Rf5 {[%clk 0:00:04]} 66. Kg3 {[%clk 0:00:05]}  Rc5 {[%clk 0:00:05]} 67. Rd4 {[%clk 0:00:05]}  Ra5 {[%clk 0:00:05]} 68. Rb4 {[%clk 0:00:05]}  Rc5 {[%clk 0:00:05]} 69. Rb7 {[%clk 0:00:05]}  Ra5 {[%clk 0:00:05]} 70. Bd1 {[%clk 0:00:06]}  Kg6 {[%clk 0:00:04]} 71. Bc2+ {[%clk 0:00:06]}  Kg7 {[%clk 0:00:04]} 72. Bb3 {[%clk 0:00:06]}  Ne4+ {[%clk 0:00:04]} 73. Kf3 {[%clk 0:00:06]}  Nd6 {[%clk 0:00:04]} 74. Rb6 {[%clk 0:00:07]}  Nf5 {[%clk 0:00:04]} 75. Rb4 {[%clk 0:00:07]}  Ra3 {[%clk 0:00:03]} 76. Kg2 {[%clk 0:00:07]}  Nxh4+ {[%clk 0:00:03]} 77. Kf1 {[%clk 0:00:07]}  Ng6 {[%clk 0:00:03]} 78. Rb7 {[%clk 0:00:06]}  Ne5 {[%clk 0:00:03]} 79. f4 {[%clk 0:00:06]}  Ng6 {[%clk 0:00:02]} 80. Rxf7+ {[%clk 0:00:04]}  Kh6 {[%clk 0:00:03]} 81. Bd5 {[%clk 0:00:03]}  Nh4 {[%clk 0:00:02]} 82. Kf2 {[%clk 0:00:03]}  Ra4 {[%clk 0:00:01]} 83. Ke3 {[%clk 0:00:02]}  Ng6 {[%clk 0:00:01]} 84. Be4 {[%clk 0:00:02]}  Nxf4 {[%clk 0:00:02]} 85. Kxf4 {[%clk 0:00:02]}  Ra7 {[%clk 0:00:00]} 86. Rh7+ {[%clk 0:00:02]} 1-0


[Site "https://www.chess.com"]

[Event "Titled Tuesday Blitz July 25 Early 2023"]
[White "ChessBrah"]
[Black "Giri, Anish"]
[BlackFideId "24116068"]
[WhiteElo "2938"]
[BlackElo "3068"]
[Result "1-0"]
[Round "8"]
[TimeControl "180+2"]
[Date "2023.07.25"]
[WhiteClock "0:00:10"]
[BlackClock "0:00:09"]
[Board "3"]

1. Nf3 {[%clk 0:02:57]}  d5 {[%clk 0:02:58]} 2. d4 {[%clk 0:02:45]}  Nf6 {[%clk 0:02:58]} 3. c4 {[%clk 0:02:45]}  c6 {[%clk 0:02:57]} 4. e3 {[%clk 0:02:44]}  Bf5 {[%clk 0:02:57]} 5. Nc3 {[%clk 0:02:44]}  e6 {[%clk 0:02:58]} 6. Nh4 {[%clk 0:02:45]}  Be4 {[%clk 0:02:58]} 7. f3 {[%clk 0:02:45]}  Bg6 {[%clk 0:02:59]} 8. Qb3 {[%clk 0:02:44]}  Qc7 {[%clk 0:02:59]} 9. Nxg6 {[%clk 0:02:45]}  hxg6 {[%clk 0:02:59]} 10. Bd2 {[%clk 0:02:45]}  Be7 {[%clk 0:03:00]} 11. O-O-O {[%clk 0:02:40]}  dxc4 {[%clk 0:02:54]} 12. Bxc4 {[%clk 0:02:40]}  b5 {[%clk 0:02:53]} 13. Be2 {[%clk 0:02:40]}  a6 {[%clk 0:02:53]} 14. e4 {[%clk 0:02:31]}  c5 {[%clk 0:02:42]} 15. dxc5 {[%clk 0:02:14]}  Nbd7 {[%clk 0:02:28]} 16. Kb1 {[%clk 0:02:14]}  Nxc5 {[%clk 0:02:29]} 17. Qc2 {[%clk 0:02:15]}  Rc8 {[%clk 0:02:29]} 18. g3 {[%clk 0:02:03]}  O-O {[%clk 0:02:27]} 19. Rc1 {[%clk 0:01:42]}  Qb7 {[%clk 0:02:19]} 20. Be3 {[%clk 0:01:20]}  b4 {[%clk 0:02:14]} 21. Na4 {[%clk 0:01:20]}  Ncxe4 {[%clk 0:01:31]} 22. Qd3 {[%clk 0:01:20]}  Nd6 {[%clk 0:01:09]} 23. Qxa6 {[%clk 0:01:05]}  Qxa6 {[%clk 0:01:06]} 24. Bxa6 {[%clk 0:01:05]}  Ra8 {[%clk 0:01:07]} 25. Rc6 {[%clk 0:01:06]}  Nd5 {[%clk 0:01:07]} 26. Bf2 {[%clk 0:00:56]}  Nf5 {[%clk 0:00:33]} 27. Nc5 {[%clk 0:00:40]}  Rfd8 {[%clk 0:00:24]} 28. Ne4 {[%clk 0:00:35]}  Bf8 {[%clk 0:00:20]} 29. Bc4 {[%clk 0:00:34]}  Nde3 {[%clk 0:00:20]} 30. Bb3 {[%clk 0:00:31]}  Nd4 {[%clk 0:00:20]} 31. Rcc1 {[%clk 0:00:18]}  Nxb3 {[%clk 0:00:20]} 32. axb3 {[%clk 0:00:19]}  Nd5 {[%clk 0:00:17]} 33. Rhd1 {[%clk 0:00:19]}  Ra6 {[%clk 0:00:15]} 34. Rc4 {[%clk 0:00:19]}  Rda8 {[%clk 0:00:15]} 35. Kc2 {[%clk 0:00:19]}  f6 {[%clk 0:00:13]} 36. f4 {[%clk 0:00:19]}  Kf7 {[%clk 0:00:13]} 37. h4 {[%clk 0:00:19]}  Be7 {[%clk 0:00:14]} 38. Bc5 {[%clk 0:00:18]}  Rd8 {[%clk 0:00:11]} 39. Bf2 {[%clk 0:00:18]}  Rd7 {[%clk 0:00:10]} 40. Rd2 {[%clk 0:00:18]}  Ra8 {[%clk 0:00:11]} 41. Kd1 {[%clk 0:00:17]}  Rad8 {[%clk 0:00:11]} 42. Ke1 {[%clk 0:00:11]}  Ra8 {[%clk 0:00:11]} 43. Ke2 {[%clk 0:00:11]}  Rad8 {[%clk 0:00:11]} 44. Kf3 {[%clk 0:00:10]}  Ra8 {[%clk 0:00:11]} 45. Rdc2 {[%clk 0:00:11]}  Ra1 {[%clk 0:00:10]} 46. Rd2 {[%clk 0:00:11]}  Rc1 {[%clk 0:00:09]} 47. Rxc1 {[%clk 0:00:10]} 1-0


[Site "https://www.chess.com"]

[Event "Titled Tuesday Blitz July 25 Early 2023"]
[White "Gholami Orimi, Mahdi"]
[Black "Duda, Jan-Krzysztof"]
[WhiteFideId "12558486"]
[BlackFideId "1170546"]
[WhiteElo "2912"]
[BlackElo "3007"]
[Result "0-1"]
[Round "8"]
[TimeControl "180+2"]
[Date "2023.07.25"]
[WhiteClock "0:00:02"]
[BlackClock "0:00:05"]
[Board "6"]

1. d4 {[%clk 0:02:57]}  Nf6 {[%clk 0:02:58]} 2. c4 {[%clk 0:02:58]}  g6 {[%clk 0:02:58]} 3. Nc3 {[%clk 0:02:57]}  Bg7 {[%clk 0:02:58]} 4. g3 {[%clk 0:02:57]}  O-O {[%clk 0:02:58]} 5. Bg2 {[%clk 0:02:57]}  d6 {[%clk 0:02:57]} 6. Nf3 {[%clk 0:02:57]}  Nbd7 {[%clk 0:02:57]} 7. O-O {[%clk 0:02:57]}  e5 {[%clk 0:02:57]} 8. e4 {[%clk 0:02:58]}  c6 {[%clk 0:02:57]} 9. h3 {[%clk 0:02:56]}  Re8 {[%clk 0:02:56]} 10. Be3 {[%clk 0:02:53]}  exd4 {[%clk 0:02:52]} 11. Nxd4 {[%clk 0:02:53]}  Nc5 {[%clk 0:02:53]} 12. Qc2 {[%clk 0:02:52]}  Qe7 {[%clk 0:02:52]} 13. Rfe1 {[%clk 0:02:41]}  a5 {[%clk 0:02:51]} 14. Rad1 {[%clk 0:02:38]}  a4 {[%clk 0:02:48]} 15. Bf4 {[%clk 0:02:17]}  Nfd7 {[%clk 0:02:46]} 16. Qe2 {[%clk 0:01:55]}  h5 {[%clk 0:02:39]} 17. Bc1 {[%clk 0:01:34]}  Nb6 {[%clk 0:02:33]} 18. f4 {[%clk 0:01:26]}  Be6 {[%clk 0:02:32]} 19. Nxe6 {[%clk 0:01:18]}  Qxe6 {[%clk 0:02:33]} 20. Bf1 {[%clk 0:01:18]}  Bxc3 {[%clk 0:02:08]} 21. bxc3 {[%clk 0:01:19]}  Nxe4 {[%clk 0:02:09]} 22. Qg2 {[%clk 0:01:04]}  Nd7 {[%clk 0:01:50]} 23. g4 {[%clk 0:00:54]}  hxg4 {[%clk 0:01:48]} 24. hxg4 {[%clk 0:00:55]}  Ndf6 {[%clk 0:01:42]} 25. g5 {[%clk 0:00:31]}  Nh5 {[%clk 0:01:37]} 26. Rd4 {[%clk 0:00:31]}  d5 {[%clk 0:01:31]} 27. cxd5 {[%clk 0:00:32]}  cxd5 {[%clk 0:01:32]} 28. c4 {[%clk 0:00:32]}  Qb6 {[%clk 0:01:24]} 29. Be3 {[%clk 0:00:32]}  Nxf4 {[%clk 0:01:18]} 30. Qf3 {[%clk 0:00:33]}  Ne6 {[%clk 0:00:39]} 31. Rxd5 {[%clk 0:00:28]}  Qc7 {[%clk 0:00:40]} 32. Bg2 {[%clk 0:00:17]}  N4xg5 {[%clk 0:00:37]} 33. Bxg5 {[%clk 0:00:16]}  Nxg5 {[%clk 0:00:37]} 34. Rxe8+ {[%clk 0:00:16]}  Rxe8 {[%clk 0:00:38]} 35. Rxg5 {[%clk 0:00:17]}  Qxc4 {[%clk 0:00:37]} 36. Qd5 {[%clk 0:00:15]}  Qc1+ {[%clk 0:00:34]} 37. Kh2 {[%clk 0:00:15]}  Qf4+ {[%clk 0:00:31]} 38. Rg3 {[%clk 0:00:08]}  Re2 {[%clk 0:00:23]} 39. Qxb7 {[%clk 0:00:02]}  Rxa2 {[%clk 0:00:18]} 40. Qc8+ {[%clk 0:00:02]}  Kg7 {[%clk 0:00:18]} 41. Qc3+ {[%clk 0:00:03]}  Kh7 {[%clk 0:00:19]} 42. Qf3 {[%clk 0:00:02]}  Qc7 {[%clk 0:00:15]} 43. Kg1 {[%clk 0:00:01]}  Ra1+ {[%clk 0:00:15]} 44. Kh2 {[%clk 0:00:02]}  Rc1 {[%clk 0:00:14]} 45. Qf6 {[%clk 0:00:02]}  Rc2 {[%clk 0:00:10]} 46. Kh3 {[%clk 0:00:01]}  Rc5 {[%clk 0:00:07]} 47. Be4 {[%clk 0:00:01]}  Rh5+ {[%clk 0:00:04]} 48. Kg2 {[%clk 0:00:02]}  Rh6 {[%clk 0:00:03]} 49. Rf3 {[%clk 0:00:01]}  Kg8 {[%clk 0:00:03]} 50. Bd5 {[%clk 0:00:01]}  Kh7 {[%clk 0:00:02]} 51. Qxf7+ {[%clk 0:00:02]}  Qxf7 {[%clk 0:00:02]} 52. Rxf7+ {[%clk 0:00:02]}  Kh8 {[%clk 0:00:03]} 53. Ra7 {[%clk 0:00:03]}  Rh4 {[%clk 0:00:03]} 54. Be4 {[%clk 0:00:03]}  Rxe4 {[%clk 0:00:03]} 55. Kf3 {[%clk 0:00:02]}  Rb4 {[%clk 0:00:03]} 56. Kg3 {[%clk 0:00:02]}  g5 {[%clk 0:00:03]} 57. Ra5 {[%clk 0:00:01]}  g4 {[%clk 0:00:03]} 58. Ra7 {[%clk 0:00:02]}  Kg8 {[%clk 0:00:03]} 59. Kh4 {[%clk 0:00:02]}  Kf8 {[%clk 0:00:04]} 60. Kg3 {[%clk 0:00:03]}  Ke8 {[%clk 0:00:04]} 61. Kh4 {[%clk 0:00:03]}  Kd8 {[%clk 0:00:05]} 62. Kg3 {[%clk 0:00:04]}  Kc8 {[%clk 0:00:05]} 63. Kh4 {[%clk 0:00:04]}  Kb8 {[%clk 0:00:05]} 64. Ra5 {[%clk 0:00:04]}  Kb7 {[%clk 0:00:06]} 65. Kg3 {[%clk 0:00:04]}  Re4 {[%clk 0:00:06]} 66. Rb5+ {[%clk 0:00:03]}  Ka6 {[%clk 0:00:06]} 67. Rb8 {[%clk 0:00:04]}  Ka5 {[%clk 0:00:06]} 68. Kh4 {[%clk 0:00:03]}  a3 {[%clk 0:00:06]} 69. Ra8+ {[%clk 0:00:03]}  Kb4 {[%clk 0:00:07]} 70. Rb8+ {[%clk 0:00:04]}  Kc3 {[%clk 0:00:07]} 71. Ra8 {[%clk 0:00:03]}  Kb3 {[%clk 0:00:07]} 72. Rb8+ {[%clk 0:00:03]}  Rb4 {[%clk 0:00:07]} 73. Re8 {[%clk 0:00:04]}  a2 {[%clk 0:00:07]} 74. Re3+ {[%clk 0:00:05]}  Ka4 {[%clk 0:00:07]} 75. Re8 {[%clk 0:00:05]}  Ka3 {[%clk 0:00:05]} 76. Re3+ {[%clk 0:00:04]}  Rb3 {[%clk 0:00:06]} 77. Re1 {[%clk 0:00:04]}  g3 {[%clk 0:00:06]} 78. Kh3 {[%clk 0:00:04]}  Rc3 {[%clk 0:00:04]} 79. Kg2 {[%clk 0:00:03]}  Kb2 {[%clk 0:00:04]} 80. Re2+ {[%clk 0:00:02]}  Rc2 {[%clk 0:00:05]} 0-1


[Site "https://www.chess.com"]

[Event "Titled Tuesday Blitz July 25 Early 2023"]
[White "Ashraf, Artin"]
[Black "Anton Guijarro, David"]
[WhiteFideId "22514805"]
[BlackFideId "2285525"]
[WhiteElo "2820"]
[BlackElo "2964"]
[Result "0-1"]
[Round "8"]
[TimeControl "180+2"]
[Date "2023.07.25"]
[WhiteClock "0:00:00"]
[BlackClock "0:00:04"]
[Board "9"]

1. c4 {[%clk 0:02:59]}  e6 {[%clk 0:02:58]} 2. b3 {[%clk 0:02:56]}  d5 {[%clk 0:02:58]} 3. Nf3 {[%clk 0:02:56]}  d4 {[%clk 0:02:58]} 4. e3 {[%clk 0:02:54]}  c5 {[%clk 0:02:58]} 5. g3 {[%clk 0:02:47]}  Nc6 {[%clk 0:02:57]} 6. exd4 {[%clk 0:02:48]}  cxd4 {[%clk 0:02:57]} 7. Bg2 {[%clk 0:02:47]}  Nf6 {[%clk 0:02:56]} 8. O-O {[%clk 0:02:48]}  Bd6 {[%clk 0:02:53]} 9. Re1 {[%clk 0:02:46]}  O-O {[%clk 0:02:51]} 10. d3 {[%clk 0:02:40]}  Re8 {[%clk 0:02:43]} 11. a3 {[%clk 0:02:35]}  a5 {[%clk 0:02:43]} 12. Bg5 {[%clk 0:02:35]}  h6 {[%clk 0:02:43]} 13. Bxf6 {[%clk 0:02:35]}  Qxf6 {[%clk 0:02:43]} 14. Nbd2 {[%clk 0:02:36]}  Qd8 {[%clk 0:02:33]} 15. Qc2 {[%clk 0:02:30]}  e5 {[%clk 0:02:25]} 16. c5 {[%clk 0:02:23]}  Bc7 {[%clk 0:02:15]} 17. Qb2 {[%clk 0:02:08]}  Rb8 {[%clk 0:01:51]} 18. Nc4 {[%clk 0:01:40]}  Bf5 {[%clk 0:01:46]} 19. Qd2 {[%clk 0:01:32]}  Qf6 {[%clk 0:01:16]} 20. b4 {[%clk 0:01:28]}  axb4 {[%clk 0:01:15]} 21. axb4 {[%clk 0:01:29]}  e4 {[%clk 0:01:13]} 22. Nh4 {[%clk 0:01:14]}  e3 {[%clk 0:01:02]} 23. fxe3 {[%clk 0:01:13]}  dxe3 {[%clk 0:01:01]} 24. Nxe3 {[%clk 0:01:13]}  Bh7 {[%clk 0:00:50]} 25. Nd5 {[%clk 0:01:05]}  Qd4+ {[%clk 0:00:41]} 26. Kh1 {[%clk 0:01:01]}  Be5 {[%clk 0:00:33]} 27. Nf3 {[%clk 0:00:53]}  Qxd5 {[%clk 0:00:20]} 28. Nxe5 {[%clk 0:00:51]}  Qd4 {[%clk 0:00:20]} 29. Nxc6 {[%clk 0:00:35]}  Rxe1+ {[%clk 0:00:20]} 30. Rxe1 {[%clk 0:00:35]}  bxc6 {[%clk 0:00:21]} 31. Bxc6 {[%clk 0:00:35]}  Bxd3 {[%clk 0:00:19]} 32. Qe3 {[%clk 0:00:27]}  Qxb4 {[%clk 0:00:16]} 33. Bd5 {[%clk 0:00:19]}  Bc4 {[%clk 0:00:09]} 34. Bg2 {[%clk 0:00:11]}  Be6 {[%clk 0:00:09]} 35. c6 {[%clk 0:00:11]}  Rc8 {[%clk 0:00:09]} 36. Rd1 {[%clk 0:00:11]}  Qb5 {[%clk 0:00:08]} 37. Qe4 {[%clk 0:00:10]}  g6 {[%clk 0:00:06]} 38. Qf4 {[%clk 0:00:09]}  Kg7 {[%clk 0:00:05]} 39. Qd4+ {[%clk 0:00:09]}  Kh7 {[%clk 0:00:05]} 40. Qd6 {[%clk 0:00:09]}  Qb6 {[%clk 0:00:04]} 41. Rf1 {[%clk 0:00:08]}  Qc7 {[%clk 0:00:04]} 42. Qc5 {[%clk 0:00:07]}  Qd8 {[%clk 0:00:03]} 43. Qe5 {[%clk 0:00:07]}  Qc7 {[%clk 0:00:03]} 44. Qf6 {[%clk 0:00:07]}  Qd8 {[%clk 0:00:03]} 45. Qf4 {[%clk 0:00:07]}  Qc7 {[%clk 0:00:03]} 46. Qb4 {[%clk 0:00:07]}  h5 {[%clk 0:00:04]} 47. Qd4 {[%clk 0:00:07]}  Rd8 {[%clk 0:00:04]} 48. Qf6 {[%clk 0:00:07]}  Rd2 {[%clk 0:00:04]} 49. Qf4 {[%clk 0:00:07]}  Qxf4 {[%clk 0:00:04]} 50. gxf4 {[%clk 0:00:07]}  Rc2 {[%clk 0:00:04]} 51. Rd1 {[%clk 0:00:07]}  Kg7 {[%clk 0:00:04]} 52. Kg1 {[%clk 0:00:05]}  Kf6 {[%clk 0:00:04]} 53. Rd4 {[%clk 0:00:06]}  h4 {[%clk 0:00:04]} 54. Be4 {[%clk 0:00:05]}  Rc3 {[%clk 0:00:04]} 55. Kf2 {[%clk 0:00:04]}  Ke7 {[%clk 0:00:04]} 56. Bf3 {[%clk 0:00:04]}  Rc2+ {[%clk 0:00:04]} 57. Kg1 {[%clk 0:00:03]}  h3 {[%clk 0:00:04]} 58. Be4 {[%clk 0:00:02]}  Rc3 {[%clk 0:00:04]} 59. Bd5 {[%clk 0:00:02]}  Bxd5 {[%clk 0:00:04]} 60. Rxd5 {[%clk 0:00:03]}  Rxc6 {[%clk 0:00:04]} 61. Rd3 {[%clk 0:00:03]}  Rc4 {[%clk 0:00:03]} 62. Re3+ {[%clk 0:00:03]}  Kf6 {[%clk 0:00:03]} 63. Rxh3 {[%clk 0:00:02]}  Rxf4 {[%clk 0:00:04]} 64. Kg2 {[%clk 0:00:03]}  Kf5 {[%clk 0:00:03]} 65. Rb3 {[%clk 0:00:04]}  Rg4+ {[%clk 0:00:04]} 66. Kf3 {[%clk 0:00:04]}  Rc4 {[%clk 0:00:04]} 67. Rb5+ {[%clk 0:00:03]}  Kf6 {[%clk 0:00:04]} 68. Ra5 {[%clk 0:00:04]}  Rc3+ {[%clk 0:00:04]} 69. Kg2 {[%clk 0:00:03]}  g5 {[%clk 0:00:04]} 70. h3 {[%clk 0:00:03]}  Kg6 {[%clk 0:00:04]} 71. Ra6+ {[%clk 0:00:03]}  f6 {[%clk 0:00:05]} 72. Rb6 {[%clk 0:00:04]}  Rd3 {[%clk 0:00:05]} 73. Ra6 {[%clk 0:00:04]}  Kf5 {[%clk 0:00:05]} 74. Ra5+ {[%clk 0:00:03]}  Ke4 {[%clk 0:00:06]} 75. Ra4+ {[%clk 0:00:02]}  Rd4 {[%clk 0:00:06]} 76. Ra6 {[%clk 0:00:02]}  f5 {[%clk 0:00:06]} 77. Ra2 {[%clk 0:00:02]}  Ke3 {[%clk 0:00:06]} 78. Ra3+ {[%clk 0:00:02]}  Rd3 {[%clk 0:00:06]} 79. Ra5 {[%clk 0:00:02]}  Rd2+ {[%clk 0:00:06]} 80. Kg3 {[%clk 0:00:03]}  f4+ {[%clk 0:00:06]} 81. Kg4 {[%clk 0:00:03]}  Rg2+ {[%clk 0:00:06]} 82. Kf5 {[%clk 0:00:04]}  f3 {[%clk 0:00:07]} 83. Re5+ {[%clk 0:00:03]}  Kd2 {[%clk 0:00:05]} 84. Kg6 {[%clk 0:00:02]}  f2 {[%clk 0:00:04]} 85. Rf5 {[%clk 0:00:00]}  Ke2 {[%clk 0:00:04]} 0-1


[Site "https://www.chess.com"]

[Event "Titled Tuesday Blitz July 25 Early 2023"]
[White "Megaranto, Susanto"]
[Black "Koshulyan, Egor A."]
[WhiteFideId "7101384"]
[BlackFideId "24237000"]
[WhiteElo "2949"]
[BlackElo "2714"]
[Result "1-0"]
[Round "8"]
[TimeControl "180+2"]
[Date "2023.07.25"]
[WhiteClock "0:01:00"]
[BlackClock "0:00:05"]
[Board "11"]

1. e4 {[%clk 0:03:00]}  c5 {[%clk 0:02:59]} 2. Nf3 {[%clk 0:02:59]}  Nc6 {[%clk 0:02:59]} 3. Bc4 {[%clk 0:02:57]}  e6 {[%clk 0:02:50]} 4. O-O {[%clk 0:02:56]}  Nf6 {[%clk 0:02:50]} 5. d3 {[%clk 0:02:48]}  d5 {[%clk 0:02:40]} 6. exd5 {[%clk 0:02:36]}  exd5 {[%clk 0:02:41]} 7. Bb5 {[%clk 0:02:36]}  Be7 {[%clk 0:02:41]} 8. Bf4 {[%clk 0:02:31]}  O-O {[%clk 0:02:38]} 9. Re1 {[%clk 0:02:26]}  Bg4 {[%clk 0:02:38]} 10. c3 {[%clk 0:02:15]}  Re8 {[%clk 0:02:25]} 11. Nbd2 {[%clk 0:02:13]}  Qb6 {[%clk 0:02:21]} 12. Qa4 {[%clk 0:02:10]}  Bd7 {[%clk 0:02:14]} 13. h3 {[%clk 0:02:01]}  a6 {[%clk 0:02:11]} 14. Bxc6 {[%clk 0:02:01]}  Bxc6 {[%clk 0:02:12]} 15. Qc2 {[%clk 0:02:02]}  Bd7 {[%clk 0:02:02]} 16. d4 {[%clk 0:01:58]}  Rac8 {[%clk 0:02:00]} 17. Be3 {[%clk 0:01:48]}  c4 {[%clk 0:01:56]} 18. Bf4 {[%clk 0:01:45]}  Bf8 {[%clk 0:01:51]} 19. Ne5 {[%clk 0:01:42]}  Be6 {[%clk 0:01:49]} 20. Nf1 {[%clk 0:01:41]}  g6 {[%clk 0:01:42]} 21. Re2 {[%clk 0:01:38]}  Bg7 {[%clk 0:01:42]} 22. Ng3 {[%clk 0:01:36]}  Nd7 {[%clk 0:01:28]} 23. Rae1 {[%clk 0:01:33]}  Qb5 {[%clk 0:01:23]} 24. h4 {[%clk 0:01:27]}  Nf6 {[%clk 0:01:20]} 25. h5 {[%clk 0:01:26]}  Ng4 {[%clk 0:01:06]} 26. hxg6 {[%clk 0:01:23]}  hxg6 {[%clk 0:00:52]} 27. Nxg6 {[%clk 0:01:20]}  fxg6 {[%clk 0:00:31]} 28. Qxg6 {[%clk 0:01:00]}  Bf7 {[%clk 0:00:06]} 29. Qxg4 {[%clk 0:01:00]}  Rxe2 {[%clk 0:00:06]} 30. Rxe2 {[%clk 0:01:01]}  Rc6 {[%clk 0:00:05]} 31. Nf5 {[%clk 0:01:00]}  Rg6 {[%clk 0:00:05]} 32. Ne7+ {[%clk 0:01:00]} 1-0


[Site "https://www.chess.com"]

[Event "Titled Tuesday Blitz July 25 Early 2023"]
[White "Kazakouski, Valery"]
[Black "Martinez Alcantara, Jose Eduardo"]
[WhiteFideId "13507443"]
[BlackFideId "3805662"]
[WhiteElo "2871"]
[BlackElo "2987"]
[Result "0-1"]
[Round "8"]
[TimeControl "180+2"]
[Date "2023.07.25"]
[WhiteClock "0:00:02"]
[BlackClock "0:00:28"]
[Board "13"]

1. Nf3 {[%clk 0:03:00]}  c5 {[%clk 0:02:59]} 2. c4 {[%clk 0:03:00]}  Nf6 {[%clk 0:02:58]} 3. b3 {[%clk 0:03:00]}  b6 {[%clk 0:02:57]} 4. g3 {[%clk 0:02:59]}  Bb7 {[%clk 0:02:58]} 5. Bg2 {[%clk 0:02:58]}  e6 {[%clk 0:02:58]} 6. O-O {[%clk 0:02:58]}  Be7 {[%clk 0:02:59]} 7. Nc3 {[%clk 0:02:58]}  O-O {[%clk 0:02:59]} 8. d4 {[%clk 0:02:58]}  cxd4 {[%clk 0:03:00]} 9. Qxd4 {[%clk 0:02:59]}  d6 {[%clk 0:03:00]} 10. Rd1 {[%clk 0:02:55]}  Nbd7 {[%clk 0:02:58]} 11. Bb2 {[%clk 0:02:54]}  a6 {[%clk 0:02:58]} 12. Qf4 {[%clk 0:02:54]}  Qc7 {[%clk 0:02:50]} 13. Rac1 {[%clk 0:02:54]}  Rac8 {[%clk 0:02:49]} 14. g4 {[%clk 0:02:52]}  g6 {[%clk 0:02:06]} 15. h4 {[%clk 0:02:41]}  e5 {[%clk 0:02:02]} 16. Qg3 {[%clk 0:02:40]}  Nc5 {[%clk 0:01:55]} 17. Nd2 {[%clk 0:02:20]}  Qb8 {[%clk 0:01:45]} 18. Bxb7 {[%clk 0:02:02]}  Qxb7 {[%clk 0:01:45]} 19. g5 {[%clk 0:02:03]}  Nh5 {[%clk 0:01:46]} 20. Qf3 {[%clk 0:02:04]}  Qa7 {[%clk 0:01:45]} 21. Nde4 {[%clk 0:02:02]}  f6 {[%clk 0:01:23]} 22. Nxd6 {[%clk 0:02:00]}  Bxd6 {[%clk 0:01:22]} 23. Rxd6 {[%clk 0:02:00]}  fxg5 {[%clk 0:01:10]} 24. Qd5+ {[%clk 0:02:00]}  Qf7 {[%clk 0:01:10]} 25. Qxf7+ {[%clk 0:01:51]}  Rxf7 {[%clk 0:01:11]} 26. hxg5 {[%clk 0:01:52]}  Rf5 {[%clk 0:01:11]} 27. Nd5 {[%clk 0:01:47]}  Rxg5+ {[%clk 0:01:11]} 28. Kf1 {[%clk 0:01:45]}  Rf8 {[%clk 0:01:12]} 29. f3 {[%clk 0:00:58]}  Ng3+ {[%clk 0:00:55]} 30. Ke1 {[%clk 0:00:57]}  Nge4 {[%clk 0:00:51]} 31. fxe4 {[%clk 0:00:50]}  Nxe4 {[%clk 0:00:52]} 32. Nf6+ {[%clk 0:00:50]}  Nxf6 {[%clk 0:00:50]} 33. Rxb6 {[%clk 0:00:42]}  Ne4 {[%clk 0:00:49]} 34. Kd1 {[%clk 0:00:42]}  Rg2 {[%clk 0:00:49]} 35. Kc2 {[%clk 0:00:22]}  Rxe2+ {[%clk 0:00:49]} 36. Kb1 {[%clk 0:00:23]}  Rff2 {[%clk 0:00:45]} 37. Rb8+ {[%clk 0:00:10]}  Kf7 {[%clk 0:00:44]} 38. Ba3 {[%clk 0:00:05]}  Rxa2 {[%clk 0:00:30]} 39. Rf8+ {[%clk 0:00:05]}  Ke6 {[%clk 0:00:31]} 40. Rxf2 {[%clk 0:00:06]}  Rxf2 {[%clk 0:00:32]} 41. Re1 {[%clk 0:00:02]}  Nd2+ {[%clk 0:00:28]} 0-1


[Site "https://www.chess.com"]